Cogmind - Beta 12 X2 @@@ ROGUE MODE // 2022.09.12 @ 18:25:58 Player: Momo Result: Destroyed by X-62 Marksman with Gauss Rifle Performance ------------- Evolutions (3) 1500 Regions Visited (8) 1600 Robots Destroyed (45) 225 Value Destroyed (1028) 1028 Prototype IDs (13) 260 Alien Tech Used (0) 0 Bonus (500) 500 TOTAL SCORE: 5113 Bonus ------- Pacifist 200 Aligned with FarCom 300 Cogmind --------- Core Integrity 0/700 Matter 300/300 Energy 99/100 System Corruption 6% Temperature Cool (0) Movement Treading (258) Ox3 Location -7/Factory Parts ------- > --- POWER (1) -------- (None) > --- PROPULSION (4) --- Treaded Myomer Exoskeleton > --- UTILITY (5) ------ Armored Scrap Engine Large Storage Unit Structural Scanner Reactive Plating > --- WEAPON (3) ------- Heavy Missile Launcher Great Maul Longsword +1 > --- INVENTORY (15) --- Improved Heat Sink High-capacity Storage Unit Huge Storage Unit Large Matter Pod (150) Improved Signal Interpreter Advanced Targeting Computer Advanced Targeting Computer Femtoactuators Experimental Actuator Array Reactive Plating Reactive Plating Skeleton Box Dynamic Insulation System Trap Reconfigurator Improved Field Recycling Unit (0) Peak State ------------ > --- POWER ------------ Nuclear Core > --- PROPULSION ------- Carbon-fiber Leg Experimental Myomer Leg Experimental Myomer Leg Cooled VTOL Module > --- UTILITY ---------- Scrap Engine Large Storage Unit 1C-UTU's Buckler Skeleton Box > --- WEAPON ----------- Minigun Great Maul > --- INVENTORY -------- Mini Fusion Reactor Improved Heat Sink High-capacity Storage Unit Large Matter Pod Structural Scanner Seismic Detector Advanced Targeting Computer Femtoactuators Experimental Actuator Array Light Armor Plating Trap Reconfigurator Gauss Rifle Flak Cannon Longsword +1 [Rating: 73] Favorites ----------- Power Light Ion Engine Engine Light Ion Engine Power Core Nuclear Core Reactor Mini Fusion Reactor Propulsion Experimental Myomer Leg Treads Light Treads Leg Experimental Myomer Leg Wheel Compact Wheel Hover Unit Gravmag System Flight Unit VTOL Module Utility Large Storage Unit Device Armored Scrap Engine Storage Large Storage Unit Processor Improved Targeting Computer Protection 1C-UTU's Buckler Weapon Longsword +1 Energy Gun Small Laser Energy Cannon Particle Cannon Ballistic Gun Assault Rifle Ballistic Cannon Gauss Cannon Launcher Rocket Launcher Impact Weapon Great Maul Slashing Weapon Longsword +1 Build | -11 -10 -9 -9 -9 -8 -8 -8 -7 ------- Run | Scr Mat Mat Min Exi Min Mat Sto Fac Slots Evolved 6 | . . 2 . . . 2 . 2 Power . | . . . . . . . . . Propulsion 2 | . . 2 . . . . . . Utility 3 | . . . . . . 2 . 1 Weapon 1 | . . . . . . . . 1 Parts Attached 54 | 6 . 2 . 3 12 3 2 26 Power 7 | 1 . . . . 5 1 . . Engine 5 | 1 . . . . 4 . . . Core 1 | . . . . . . 1 . . Reactor 1 | . . . . . 1 . . . Propulsion 17 | 2 . . . 2 3 . . 10 Treads 2 | . . . . 2 . . . . Leg 6 | . . . . . 3 . . 3 Wheel 2 | 2 . . . . . . . . Hover 5 | . . . . . . . . 5 Flight 2 | . . . . . . . . 2 Utility 17 | 1 . 2 . . 3 1 1 9 Device 11 | . . . . . 2 1 . 8 Storage 2 | 1 . 1 . . . . . . Processor 1 | . . 1 . . . . . . Hackware . | . . . . . . . . . Protection 3 | . . . . . 1 . 1 1 Artifact . | . . . . . . . . . Weapon 13 | 2 . . . 1 1 1 1 7 Energy Gun 1 | 1 . . . . . . . . Energy Cannon 1 | . . . . 1 . . . . Ballistic Gun 2 | 1 . . . . 1 . . . Ballistic Cannon 1 | . . . . . . . . 1 Launcher 4 | . . . . . . . . 4 Special Weapon . | . . . . . . . . . Impact Weapon 3 | . . . . . . 1 1 1 Slashing Weapon 1 | . . . . . . . . 1 Piercing Weapon . | . . . . . . . . . Special Melee Weapon . | . . . . . . . . . Unidentified Prototypes 8 | . . . . . 5 1 . 2 Parts Lost 24 | . . . . . 7 . 2 15 Power 5 | . . . . . 3 . . 2 Propulsion 13 | . . . . . 3 . 1 9 Utility 2 | . . . . . . . 1 1 Weapon 4 | . . . . . 1 . . 3 Highest Loss Streak 9 | . . . . . 5 . 1 9 To Critical Strikes . | . . . . . . . . . Average Slot Usage (%) 79 | . 85 72 77 93 84 76 92 71 Engine 5 | . 14 11 11 11 9 2 . 1 Core 1 | . . . . . . 6 9 1 Reactor 1 | . . . . . . . . 2 Treads 5 | . . . . 15 13 . . 1 Leg 9 | . . . . . 10 27 27 10 Wheel 10 | . 28 22 22 22 17 9 4 1 Flight 1 | . . . . . . . . 3 Device 10 | . . . . . . 2 9 20 Storage 9 | . 14 12 11 11 11 9 9 7 Processor 3 | . . 5 11 11 8 . . . Protection 2 | . . . . . 2 9 15 1 Energy Gun 2 | . 14 11 11 10 . . . 1 Ballistic Gun 6 | . 14 11 11 11 10 9 9 2 Launcher 1 | . . . . . . . . 2 Impact Weapon 1 | . . . . . . 2 8 2 Slashing Weapon 3 | . . . . . . . . 6 Naked Turns . | . . . . . . . . . Heaviest Build 51 | 11 11 26 26 29 31 39 44 51 Greatest Support 65 | 26 26 26 26 26 65 65 65 65 Greatest Overweight (x) 8 | . . . . 1 1 . . 8 Average Overweight (x) . | . . . . . . . . . Largest Inventory Capacity 15 | 8 8 15 15 15 15 15 15 15 Average Capacity 14 | 6 8 13 15 15 15 15 15 15 Most Carried 15 | 2 2 10 15 15 15 15 15 15 Average Carried 13 | 1 2 6 13 14 14 14 14 13 Final Capacity 15 | 8 8 15 15 15 15 15 15 15 Final Carried 15 | 2 2 10 15 15 15 13 15 15 Class Distribution -------------------- 88% | Mutant 11% | Construct Dominant Class ---------------- Mutant | -10/Materials Mutant | -9/Materials Mutant | -9/Mines Mutant | -9/Exiles Mutant | -8/Mines Mutant | -8/Materials Mutant | -8/Storage Mutant | -7/Factory Resources | -11 -10 -9 -9 -9 -8 -8 -8 -7 ----------- Run | Scr Mat Mat Min Exi Min Mat Sto Fac Matter Collected 1049 | 140 . 152 . 20 214 . 57 466 Remotely . | . . . . . . . . . Salvage Created 1889 | . . 60 . . 236 . 99 1494 Parts 96 | . . 5 . . 17 . 6 68 Haulers Intercepted 2 | . . . . . . . . 2 Recyclers Shooed 3 | . . . . . . . . 3 Parts Field Recycled . | . . . . . . . . . Retrieved Matter . | . . . . . . . . . Parts Self-Destructed . | . . . . . . . . . Prevented . | . . . . . . . . . Kills | -11 -10 -9 -9 -9 -8 -8 -8 -7 ------- Run | Scr Mat Mat Min Exi Min Mat Sto Fac Combat Hostiles Destroyed 23 | . . 1 . . 7 . 2 13 Melee 10 | . . . . . 1 . . 9 Guns 7 | . . 1 . . 3 . 1 2 Cannons 3 | . . . . . 3 . . . AOE 2 | . . . . . . . . 2 Classes Destroyed 11 | . . 1 . . 3 . 1 6 Worker 5 | . . . . . 1 . . 4 Builder 4 | . . . . . 1 . 1 2 Hauler 2 | . . . . . . . . 2 Recycler 9 | . . . . . . . . 9 Mechanic 1 | . . . . . . . . 1 Watcher 1 | . . . . . . . . 1 Swarmer 7 | . . . . . 6 . . 1 Grunt 6 | . . . . . . . 2 4 Sentry 6 | . . 1 . . . . . 5 Specialist 1 | . . . . . . . . 1 Programmer 2 | . . . . . . . . 2 Best Kill Streak 5 | . . 1 . . 5 . 1 5 Combat Bots Only 4 | . . 1 . . 4 . 1 2 Max Kills in Single Turn 3 | . . 1 . . 1 . 1 3 Gunslinging . | . . . . . . . . . Exploded 2 | . . . . . . . . 2 Melee 1 | . . . . . 1 . . 1 Uniques/NPCs Destroyed 1 | . . . . . 1 . . . 1C-UTU (-8/Mines) Combat | -11 -10 -9 -9 -9 -8 -8 -8 -7 -------- Run | Scr Mat Mat Min Exi Min Mat Sto Fac Damage Taken 4120 | . . 56 . . 753 16 364 2931 Core 830 | . . 28 . . 100 . . 702 Absorbed by Shields . | . . . . . . . . . Core Remaining (%) 92 | 100 100 . . . 68 . 100 . Volleys Fired 76 | . . 4 . 4 17 1 15 35 Largest 2 | . . 2 . 2 2 1 1 2 Hottest 93 | . . 60 . 68 88 25 25 93 Shots Fired 93 | . . 8 . 7 25 1 15 37 Gun 76 | . . 8 . 6 17 1 15 29 Cannon 13 | . . . . 1 8 . . 4 Launcher 4 | . . . . . . . . 4 Special . | . . . . . . . . . Kinetic 62 | . . 4 . 3 17 1 15 22 Thermal 27 | . . 4 . 4 8 . . 11 Explosive 4 | . . . . . . . . 4 Electromagnetic . | . . . . . . . . . Robot Hit Streak 8 | . . 3 . . 7 . 6 8 Robot Miss Streak 8 | . . 1 . . 1 1 3 8 Penetration Max . | . . . . . . . . . Secondary Targets . | . . . . . . . . . Shots Hit Robots 111 | . . 5 . . 18 . 11 77 Core Hits 55 | . . 2 . . 10 . 3 40 Critical Kills . | . . . . . . . . . Critical Parts Destroyed 1 | . . . . . . . 1 . Critical Strikes 5 | . . . . . . . 1 4 Smash 1 | . . . . . . . 1 . Sever 4 | . . . . . . . . 4 Melee Attacks 72 | . . . . . . 2 6 64 Impact 8 | . . . . . . 2 6 . Slashing 64 | . . . . . . . . 64 Piercing . | . . . . . . . . . Sneak Attacks 16 | . . . . . . . . 16 Combat Hostiles . | . . . . . . . . . Follow-up Attacks . | . . . . . . . . . Damage Inflicted 4672 | . . 56 . . 333 . 248 4035 Guns 959 | . . 56 . . 170 . 182 551 Cannons 145 | . . . . . 145 . . . Explosions 365 | . . . . . . . . 365 Melee 3185 | . . . . . . . 66 3119 Ramming 18 | . . . . . 18 . . . Kinetic 697 | . . 12 . . 170 . 182 333 Thermal 407 | . . 44 . . 145 . . 218 Explosive 365 | . . . . . . . . 365 Electromagnetic . | . . . . . . . . . Impact 66 | . . . . . . . 66 . Slashing 3119 | . . . . . . . . 3119 Piercing . | . . . . . . . . . Highest Corruption 6 | . . . . . . . 1 6 Average Corruption 5 | . . . . . . . 1 5 Corruption Purged . | . . . . . . . . . Corruption Blocked . | . . . . . . . . . Effects 38 | . . . . . . . 1 37 Message Errors 10 | . . . . . . . . 10 Matter Fused 10 | . . . . . . . . 10 Heat Flow Errors 2 | . . . . . . . . 2 Energy Discharges 4 | . . . . . . . . 4 Parts Rejected 2 | . . . . . . . . 2 Data Loss (minor) 6 | . . . . . . . . 6 Data Loss (major) 3 | . . . . . . . 1 2 Misfires 1 | . . . . . . . . 1 Overload Shots . | . . . . . . . . . Overflow Damage 568 | . . . . . . . 66 502 Projectiles . | . . . . . . . . . Explosions . | . . . . . . . . . Melee 568 | . . . . . . . 66 502 Knockbacks . | . . . . . . . . . Impact . | . . . . . . . . . Kinetic . | . . . . . . . . . Secondary . | . . . . . . . . . Self-Inflicted Damage 83 | . . . . . 8 . . 75 Shots 2 | . . . . . . . . 2 Rammed 2 | . . . . . 2 . . . Targets Rammed 2 | . . . . . 2 . . . Kicked . | . . . . . . . . . Crushed . | . . . . . . . . . Highest Temperature 420 | . . 6 . 22 93 1 23 420 Average Temperature 77 | . . 4 . 16 51 1 10 111 Received Heat Transfer 1035 | . . 18 . . 36 9 189 783 Effects 1 | . . . . . . . . 1 Interference 1 | . . . . . . . . 1 Siege Activations . | . . . . . . . . . Robots Corrupted . | . . . . . . . . . Combat Hostiles . | . . . . . . . . . Parts Fried . | . . . . . . . . . Impact Corruptions 1 | . . . . . . . 1 . Robots Melted . | . . . . . . . . . Combat Hostiles . | . . . . . . . . . Parts Melted 2 | . . 1 . . 1 . . . Heat Transferred 834 | . . 100 . . 259 . . 475 Parts Sabotaged . | . . . . . . . . . Parts Stolen . | . . . . . . . . . Parts Stripped . | . . . . . . . . . Power Chain Reactions . | . . . . . . . . . Missiles Intercepted . | . . . . . . . . . Alert | -11 -10 -9 -9 -9 -8 -8 -8 -7 ------- Run | Scr Mat Mat Min Exi Min Mat Sto Fac Peak Influence 271 | . . 60 23 . 170 44 140 271 Initial 58 | . . . 23 . . 13 18 58 Average 82 | . . 16 23 . 77 27 70 103 Maximum Alert Level 1 | . . . . . . . . 1 Low Security (%) 92 | 100 100 100 100 . 100 100 100 85 Level 1 7 | . . . . . . . . 14 Level 2 . | . . . . . . . . . Level 3 . | . . . . . . . . . Level 4 . | . . . . . . . . . Level 5 . | . . . . . . . . . High Security . | . . . . . . . . . Max Security . | . . . . . . . . . Squads Dispatched 10 | . . . . . . 2 1 7 Investigation . | . . . . . . . . . Extermination 3 | . . . . . . . . 3 Reinforcement 7 | . . . . . . 2 1 4 Assault . | . . . . . . . . . Garrison . | . . . . . . . . . Intercept . | . . . . . . . . . Searches Triggered . | . . . . . . . . . Construction Impeded . | . . . . . . . . . Haulers Reinforced . | . . . . . . . . . Active Scanning Responses . | . . . . . . . . . Cargo Convoy Interrupts 1 | . . . . . . . . 1 Stealth | -11 -10 -9 -9 -9 -8 -8 -8 -7 --------- Run | Scr Mat Mat Min Exi Min Mat Sto Fac Distress Signals 7 | . . . . . . . 1 6 Communications Jammed . | . . . . . . . . . Distress Signals . | . . . . . . . . . Times Spotted 79 | . 1 2 . . 21 7 9 39 Peak Tracking Total 13 | . 1 1 . 10 7 5 6 13 Tactical Retreats 5 | . . . . 1 3 . . 1 Traps | -11 -10 -9 -9 -9 -8 -8 -8 -7 ------- Run | Scr Mat Mat Min Exi Min Mat Sto Fac Traps Triggered 8 | . . . . . . . 1 7 Indirectly . | . . . . . . . . . Trap Hack Attempts . | . . . . . . . . . Triggered . | . . . . . . . . . Disarmed . | . . . . . . . . . Reprogrammed . | . . . . . . . . . Reused 3 | . . . . . 3 . . . Traps Extracted . | . . . . . . . . . Installed 3 | . . . . . 3 . . . Triggered 2 | . . . . . . . . 2 Most Traps Carried 4 | . . . 4 4 4 . . . Machines | -11 -10 -9 -9 -9 -8 -8 -8 -7 ---------- Run | Scr Mat Mat Min Exi Min Mat Sto Fac Machines Disabled 5 | . . . . 1 . . 1 3 Max in Single Turn 1 | . . . . 1 . . 1 1 Machines Sabotaged . | . . . . . . . . . Overloaded Fab Kills . | . . . . . . . . . Hacking | -11 -10 -9 -9 -9 -8 -8 -8 -7 --------- Run | Scr Mat Mat Min Exi Min Mat Sto Fac Machines Accessed 5 | . 1 . . . . . 2 2 Terminals 4 | . 1 . . . . . 2 1 Fabricators . | . . . . . . . . . Repair Stations . | . . . . . . . . . Recycling Units 1 | . . . . . . . . 1 Scanalyzers . | . . . . . . . . . Garrison Access . | . . . . . . . . . Total Hacks 8 | . 2 . . . . . 3 3 Successful 3 | . . . . . . . 2 1 Failed 5 | . 2 . . . . . 1 2 Catastrophic . | . . . . . . . . . Database Lockouts . | . . . . . . . . . Manual 2 | . . . . 1 . . 1 . Terminals 6 | . 2 . . . . . 3 1 Fabricators . | . . . . . . . . . Repair Stations . | . . . . . . . . . Recycling Units 2 | . . . . . . . . 2 Scanalyzers . | . . . . . . . . . Garrison Access . | . . . . . . . . . Terminal Hacks 2 | . . . . . . . 2 . Open Door 1 | . . . . . . . 1 . Locate Traps 1 | . . . . . . . 1 . Fabricator Hacks . | . . . . . . . . . Repair Station Hacks . | . . . . . . . . . Recycling Unit Hacks 1 | . . . . . . . . 1 Retrieve Components 1 | . . . . . . . . 1 Scanalyzer . | . . . . . . . . . Garrison Access Hacks . | . . . . . . . . . Unauthorized Hacks . | . . . . . . . . . Terminals . | . . . . . . . . . Fabricators . | . . . . . . . . . Repair Stations . | . . . . . . . . . Recycling Units . | . . . . . . . . . Scanalyzers . | . . . . . . . . . Garrison Access . | . . . . . . . . . Data Cores Recovered . | . . . . . . . . . Used . | . . . . . . . . . Hacking Detections 3 | . 1 . . . . . 1 1 Full Trace Events . | . . . . . . . . . Feedback Events . | . . . . . . . . . Feedback Blocked . | . . . . . . . . . Robot Schematics Acquired . | . . . . . . . . . Robots Built . | . . . . . . . . . Authchips . | . . . . . . . . . Time . | . . . . . . . . . Total Robot Build Rating . | . . . . . . . . . Part Schematics Acquired . | . . . . . . . . . Parts Built . | . . . . . . . . . Authchips . | . . . . . . . . . Time . | . . . . . . . . . Total Part Build Rating . | . . . . . . . . . Parts Repaired . | . . . . . . . . . Time . | . . . . . . . . . Parts Recycled . | . . . . . . . . . Recycled Matter . | . . . . . . . . . Retrieved Matter . | . . . . . . . . . Retrieved Components 10 | . . . . . . . . 10 Parts Scanalyzed . | . . . . . . . . . Part Schematics Acquired . | . . . . . . . . . Parts Damaged . | . . . . . . . . . Bothacking | -11 -10 -9 -9 -9 -8 -8 -8 -7 ------------ Run | Scr Mat Mat Min Exi Min Mat Sto Fac Used RIF Installer . | . . . . . . . . . Robots Hacked . | . . . . . . . . . Non-combat . | . . . . . . . . . Combat . | . . . . . . . . . Robot Hacks Applied . | . . . . . . . . . Relay Couplers Released . | . . . . . . . . . Fabnet Peak Effective % . | . . . . . . . . . Robots Rewired . | . . . . . . . . . Allies Hacked . | . . . . . . . . . Hacks Repelled . | . . . . . . . . . Allies | -11 -10 -9 -9 -9 -8 -8 -8 -7 -------- Run | Scr Mat Mat Min Exi Min Mat Sto Fac Total Allies . | . . . . . . . . . Largest Group . | . . . . . . . . . Highest-Rated Group . | . . . . . . . . . Highest-Rated Ally . | . . . . . . . . . Total Orders . | . . . . . . . . . Ally Attacks . | . . . . . . . . . Total Damage . | . . . . . . . . . Kills . | . . . . . . . . . Allies Corrupted . | . . . . . . . . . Allies Melted . | . . . . . . . . . Intel | -11 -10 -9 -9 -9 -8 -8 -8 -7 ------- Run | Scr Mat Mat Min Exi Min Mat Sto Fac Robot Analysis Total . | . . . . . . . . . Derelict Logs Recovered . | . . . . . . . . . Drone Launches . | . . . . . . . . . Drone Recoveries . | . . . . . . . . . Exploration | -11 -10 -9 -9 -9 -8 -8 -8 -7 ------------- Run | Scr Mat Mat Min Exi Min Mat Sto Fac Turns Passed 3542 | 43 82 77 139 449 780 83 222 1667 Spaces Moved 2827 | 37 91 61 122 472 707 72 164 1101 Core 10 | 5 . . . . . . . 5 Treads 215 | . . . . . 1 . . 214 Legs 1070 | . . . . . 191 72 164 643 Wheels 1505 | 32 91 61 122 472 515 . . 212 Hover 27 | . . . . . . . . 27 Flight . | . . . . . . . . . Fastest Speed 50 | 50 90 90 90 90 90 100 100 76 Average Speed 104 | 86 90 90 90 91 93 100 100 123 Slowest Speed 450 | 100 90 90 90 105 160 100 100 450 Overloaded Moves . | . . . . . . . . . Propulsion Burnouts . | . . . . . . . . . Robots Hopped . | . . . . . . . . . Cave-ins Triggered . | . . . . . . . . . Exploration Rate (%) 39 | 4 27 8 38 89 90 10 50 35 Regions Visited 8 Branch Regions 4 Pre-discovered Areas . | . . . . . . . . . Known Exits Taken . | . . . . . . . . . Unknown Exits Taken 8 | 1 1 1 1 1 1 1 1 . Scrap Searched 2 | . . . 1 . 1 . . . Spaces Dug 21 | . . . . . . 1 5 15 Terrain Destroyed 31 | . . . . . . 1 5 25 Melee 14 | . . . . . . 1 5 8 Projectile 2 | . . . . . . . . 2 AOE 15 | . . . . . . . . 15 Terrain Rammed . | . . . . . . . . . Walls Destroyed . | . . . . . . . . . Machines Disabled . | . . . . . . . . . Actions | -11 -10 -9 -9 -9 -8 -8 -8 -7 --------- Run | Scr Mat Mat Min Exi Min Mat Sto Fac Total 3234 | 44 90 74 151 484 800 78 197 1316 Wait 131 | . . . 25 . 41 . 8 57 Move 2819 | 36 90 60 121 471 706 71 163 1101 Hop . | . . . . . . . . . Pick Up 42 | 2 . 7 5 4 9 . 2 13 Fast Attach 34 | 6 . 2 . . 7 1 2 16 Attach 15 | . . . . 2 1 2 . 10 Detach 5 | . . 1 . . . . . 4 Swap 5 | . . . . 1 4 . . . Drop 30 | . . . . 2 10 1 1 16 Fire 76 | . . 4 . 4 17 1 15 35 Melee 72 | . . . . . . 2 6 64 Ram 2 | . . . . . 2 . . . Kick . | . . . . . . . . . Crush . | . . . . . . . . . Escape Stasis . | . . . . . . . . . Rewire . | . . . . . . . . . Trap 3 | . . . . . 3 . . . Miscellaneous . | . . . . . . . . . Route ------- -11/Scrapyard -10/Materials -9/Materials -9/Mines (discovered 2 exits: [*Mat] / *Exi) -9/Exiles (discovered 2 exits: [*Min x2]) -8/Mines -8/Materials -8/Storage -7/Factory (discovered 2 exits: [*Fac x2]) History --------- Turn | Location | Event 16 | -11/Scrapyard | Discovered new exit (range 16) 44 | -11/Scrapyard | Entered Materials 107 | -10/Materials | Discovered new exit (range 6) 126 | -10/Materials | Entered another Materials area 126 | -9/Materials | Evolved 2 slots: Propulsion x2 173 | -9/Materials | Discovered new exit (range 12) 203 | -9/Materials | Entered Mines 210 | -9/Mines | Discovered new exit (range 14) 260 | -9/Mines | Found a hidden stash of uninstalled traps 314 | -9/Mines | Build established: Mutant 338 | -9/Mines | Deemed a non-threat by the Exiles lab entrance 339 | -9/Mines | Discovered new exit (range 5) 342 | -9/Mines | Entered Exiles 355 | -9/Exiles | Discovered new exit (range 15) 365 | -9/Exiles | Met 8R-AWN 379 | -9/Exiles | Met EX-HEX 411 | -9/Exiles | Met EX-BIN 434 | -9/Exiles | Met EX-DEC 538 | -9/Exiles | Visited The Gauntlet 652 | -9/Exiles | Aligned with FarCom system 652 | -9/Exiles | Given EX-Vault access code 673 | -9/Exiles | Opened EX-Vault 678 | -9/Exiles | Found Prototype Slashing Weapon 683 | -9/Exiles | Found Prototype Device 686 | -9/Exiles | Found Prototype Device 704 | -9/Exiles | Warned to stay clear of 0b10 Research branches 754 | -9/Exiles | Attacked by the Exiles 782 | -9/Exiles | Discovered new exit (range 10) 791 | -9/Exiles | Stole three prototypes: Trap Reconfigurator, Longsword +1, Skeleton Box 791 | -9/Exiles | Entered Mines 854 | -8/Mines | 1C-UTU came to Exiles' defense 1003 | -8/Mines | Discovered new exit (range 10) 1312 | -8/Mines | Lost 5 parts (1p3n1w) 1322 | -8/Mines | Destroyed 1C-UTU 1327 | -8/Mines | Found Prototype Protection 1335 | -8/Mines | Found Prototype Device 1362 | -8/Mines | Found Prototype Device 1362 | -8/Mines | Identified Exp. Actuator Array 1363 | -8/Mines | Identified Femtoactuators 1378 | -8/Mines | Identified 1C-UTU's Buckler 1571 | -8/Mines | Entered Materials 1571 | -8/Materials | Evolved 2 slots: Utility x2 1571 | -8/Materials | Discovered new exit (range 8) 1630 | -8/Materials | Identified Skeleton Box 1654 | -8/Materials | Entered Storage 1863 | -8/Storage | Discovered new exit (range 14) 1876 | -8/Storage | Entered Factory 1876 | -7/Factory | Evolved 2 slots: Utility x1, Weapon x1 1876 | -7/Factory | Found Scrap Engine 1900 | -7/Factory | Identified Longsword +1 2085 | -7/Factory | Identified Trap Reconfigurator 2141 | -7/Factory | Discovered new exit (range 16) 2682 | -7/Factory | Core integrity fell below 50% 2716 | -7/Factory | Lost 9 parts (1p5n1u2w) 3007 | -7/Factory | Core integrity fell below 20% 3086 | -7/Factory | Cargo convoy interrupted 3406 | -7/Factory | Build established: Construct 3533 | -7/Factory | Discovered new exit (range 14) 3543 | -7/Factory | Destroyed by X-62 Marksman with Gauss Rifle Last Messages --------------- 03453_ Y-54 Guardian destroyed. 03455_ Acquired 18 matter. 03459_ Arm. Scrap Engine consumes Flak Gun. 03460_ ALERT: Rogue bot located, Programmers report to Factory Zone 2G. 03461_ JNH9VZBF386A,KVZIQI4#BL5/QIGJ2&CE|KEH 03490_ System corrupted: Matter fused (-8). 03513_ System corrupted: Component data lost. 03515_ Nuclear-Ion Engine destroyed. 03515_ Arm. Scrap Engine damaged due to network destabilization (-5). 03525_ ALERT: Suspicious intruders detected, dispatching Specialist reinforcements to area. 03533_ EXIT=FOUND 03533_ Slug penetrates Wall. 03534_ Treaded Myomer Exoskeleton destroyed. 03534_ Treaded Myomer Exoskeleton core remains intact and functional. 03535_ Penetrated by Slug. 03537_ Slug penetrates Wall. 03538_ System corrupted: Substantial component data lost. 03541_ Slug penetrates Wall. 03543_ Penetrated by Slug. Map ----- +----------------------------------------------------+ | ????????????????????????????????? | | ????????????????????????????????? | | ????????????????????????????????? | | ????????????????????????????????? | | ????????????????????????????????? | | ????????????????????????????????? | | ????????????????????????????????? | | ????????????????????????????????? | | ????????????????????????????????? | | ????????????????????????????????? | | ?????? ??????????????????????? | | ?????? ??????????????????????? | | ?????? t# ????????????????????? | | ?????? + ????????????????????? | | ?????? < # ????????????????????? | | ?????? # ????????????????????? | | ????? # ????????????????????? | | ?????##xHx# ????????????????????? | | ?????## # ????????????????????? | | ?????## # ????????????????????? | | ?????## ##############???????## | | ?????## ##############???????## | | ?????## # ##???????## | | ?????## ; """""" ##???????## | | ?????## # """""" ##???????## | | ?????## @ ; """""" ##???????## | | ?????## + """""" ##????? ### | | ?????## # ##????? ### | | ?????## %# ##????? + | | ???? ## #########+####????? ## | | ???? # ######## ####??????## | | ???? # ######## #### ?????## | | ???? + #### #### ?????## | | ???? # ### #### # ?????## | | ???? # ### #### ##?????## | | ???? ######### #### ##?????## | | ???? ## ###### ##? ##### | | ????????????## ##? ##### | | ????????????## !! ##? ## | | ????????????#### !! ##?### ## | | ????????????#### ! ###### ## | | ??????????????## ##### ! # | | ??????????????## %[ | | ??????????????## ######### !!# | | ??????????????################### | | ??????????????#######?????####### | | ????????????????????????????????? | | | | | | | +----------------------------------------------------+ Best States ------------- Heat Dissipation 34 Energy Generation 17 Energy Capacity 240 Matter Stores 300 Matter Capacity 300 Sight Range 16 Terrain Scan Density 10 Armor Coverage 350 Resistance: KI 20 Resistance: EM 15 Melee Speed Boost 50 Evasion (%) 57 Targeting Accuracy 6 Recoil Reduction 3 Item Schematics ----------------- None Robot Schematics ------------------ None Fabricated ------------ Nothing Alien Tech Used ----------------- None Achievements -------------- None Challenges ------------ None Game ------ Seed DroneHeatUnit Manual? 0 Play Time 00:55:31 Cumulative 346.2 hours Start 2022.09.12 @ 16:39:25 End 2022.09.12 @ 18:25:58 Sessions 2 Manual Loads 0 Difficulty Rogue Special Mode None Game No. 168 Rogue 164 Adventurer 0 Explorer 4 Win Type - Total 18 Types 4/1/2/4/1/2/3/0/1 Lore% 82 Gallery% 87 Achievement% 78 Wizard Run 0 Options --------- ASCII 0 Keyboard 0 Movement Mouse Keybinds 0 Fullscreen 1 Font 18/SmallcapsGlow Map View 76x50 Tactical HUD 1 Map Filters NONE Filters NONE Steam 1 RUN: 02079b30-cc1b-4b22-9ea8-bb690c238f1e